Cogmind - Beta 13 @@@ ROGUE MODE // 2024.06.08 @ 13:36:52 Player: dp-fld Result: Destroyed by G-47 Trooper with Particle Gun Performance ------------- Evolutions (3) 1500 Regions Visited (9) 1800 Robots Destroyed (169) 845 Value Destroyed (4758) 4758 Prototype IDs (14) 280 Alien Tech Used (0) 0 Bonus (503) 503 TOTAL SCORE: 9686 Bonus ------- High Alert Combat Kills 392 Follower Combat Kills 111 Cogmind --------- Core Integrity 0/700 Matter 97/300 Energy 99/100 System Corruption 27% Temperature Cool (18) Movement Core (50) Location -7/Factory Parts ------- > --- POWER (1) -------- (None) > --- PROPULSION (4) --- (None) > --- UTILITY (6) ------ Advanced Visual Processing Unit Improved Signal Interpreter Advanced Targeting Computer > --- WEAPON (2) ------- (None) > --- INVENTORY (5) ---- Gravmag System Trap Extractor (4/4 Shock) Improved Grenade Launcher Katana Peak State ------------ > --- POWER ------------ Micro Nuclear Core > --- PROPULSION ------- Armored Huge Wheel Armored Huge Wheel > --- UTILITY ---------- Improved Cooling System Huge Storage Unit Advanced Visual Processing Unit Advanced Targeting Computer Hardened Light Armor Plating Improved Light Armor Plating > --- WEAPON ----------- Improved Assault Rifle Advanced Assault Cannon > --- INVENTORY -------- Micro Nuclear Core Micro Nuclear Core Armored Wheel Gravmag System Gravmag System Gravmag System Cooled Airjet Cooling System Structural Scanner Improved Signal Interpreter Transmission Jammer ECM Suite Improved Utility Shielding Light Armor Plating Improved Light Armor Plating Hacking Suite Hacking Suite Hacking Suite High-powered Tractor Beam Trap Extractor Improved Assault Rifle Grenade Launcher Improved Grenade Launcher Improved Datajack Katana [Rating: 50] Favorites ----------- Power Light Nuclear Core Engine Improved Ion Engine Power Core Light Nuclear Core Propulsion Improved Treads Treads Improved Treads Leg Aluminum Leg Wheel Armored Huge Wheel Hover Unit Gravmag System Utility Huge Storage Unit Device Seismic Detector Storage Huge Storage Unit Processor Advanced Targeting Computer Hackware Hacking Suite Protection Hardened Light Armor Plating Weapon Advanced Beam Cannon Energy Gun Particle Gun Energy Cannon Advanced Beam Cannon Ballistic Gun Assault Rifle Ballistic Cannon Improved Light Cannon Launcher Grenade Launcher Special Weapon Plasma Cutter Impact Weapon Heavy Hammer Slashing Weapon Katana Special Melee Weapon Improved Datajack Build | -11 -10 -9 -9 -9 -8 -8 -7 -7 -7 ------- Run | Yrd Mat Mat Min Exi Min Mat Fac Was Fac Slots Evolved 6 | . . 2 . . . 2 2 . . Power . | . . . . . . . . . . Propulsion 2 | . . 1 . . . 1 . . . Utility 4 | . . 1 . . . 1 2 . . Weapon . | . . . . . . . . . . Parts Attached 177 | 2 22 38 5 2 4 42 43 14 5 Power 12 | . 3 2 1 . . 3 2 1 . Engine 6 | . 3 2 . . . 1 . . . Core 6 | . . . 1 . . 2 2 1 . Reactor . | . . . . . . . . . . Propulsion 45 | . 7 8 . . 1 14 5 8 2 Treads 24 | . . 7 . . 1 14 2 . . Leg 8 | . 7 1 . . . . . . . Wheel 4 | . . . . . . . 3 . 1 Hover 9 | . . . . . . . . 8 1 Flight . | . . . . . . . . . . Utility 49 | 1 6 11 . . . 9 15 5 2 Device 23 | 1 4 3 . . . 5 8 1 1 Storage 6 | . 1 3 . . . . 1 1 . Processor 3 | . . . . . . 1 1 1 . Hackware 1 | . . . . . . . . 1 . Protection 16 | . 1 5 . . . 3 5 1 1 Artifact . | . . . . . . . . . . Weapon 71 | 1 6 17 4 2 3 16 21 . 1 Energy Gun 2 | . 2 . . . . . . . . Energy Cannon 16 | . 1 . . . 1 10 4 . . Ballistic Gun 6 | 1 1 . . . . . 4 . . Ballistic Cannon 22 | . 2 11 2 1 1 1 3 . 1 Launcher 13 | . . 4 1 . 1 5 2 . . Special Weapon 1 | . . . . 1 . . . . . Impact Weapon 1 | . . 1 . . . . . . . Slashing Weapon 9 | . . 1 1 . . . 7 . . Piercing Weapon . | . . . . . . . . . . Special Melee Weapon 1 | . . . . . . . 1 . . Unidentified Prototypes 2 | . . . . . . 1 . 1 . Parts Lost 26 | . 5 . . . 2 5 5 4 5 Power 6 | . 2 . . . . 3 . . 1 Propulsion 5 | . . . . . 1 1 . 2 1 Utility 11 | . 1 . . . . 1 4 2 3 Weapon 4 | . 2 . . . 1 . 1 . . Highest Loss Streak 4 | . 2 . . . 1 1 2 3 4 To Critical Strikes . | . . . . . . . . . . Average Slot Usage (%) 94 | . 98 99 100 100 99 97 93 68 50 Engine 4 | . 13 11 2 . . 5 . . . Core 5 | . . . 8 11 11 3 7 7 3 Treads 25 | . . 29 33 33 33 35 18 . . Leg 2 | . 28 3 . . . . . . . Wheel 1 | . . . . . . . 5 . . Device 12 | . 12 11 11 11 11 14 13 9 10 Storage 9 | . 14 11 11 11 11 9 7 1 . Processor 4 | . . . . . . . 15 15 23 Protection 8 | . 1 10 11 11 11 9 7 3 . Energy Cannon 4 | . 1 . . . 3 15 6 . . Ballistic Gun 1 | . 12 . . . . . . 1 . Ballistic Cannon 8 | . 8 21 14 9 10 1 2 . 2 Launcher 2 | . . . 7 11 7 . . . . Naked Turns . | . . . . . . . . . . Heaviest Build 106 | 13 24 101 101 98 99 106 106 95 14 Greatest Support 92 | 20 20 69 69 69 69 92 82 26 17 Greatest Overweight (x) 31 | . 1 1 1 1 1 1 8 31 4 Average Overweight (x) . | . . . 1 1 1 1 1 . . Largest Inventory Capacity 25 | 8 10 25 25 25 25 25 25 25 5 Average Capacity 21 | 8 8 19 25 25 25 25 25 10 5 Most Carried 25 | 7 10 21 25 25 25 25 25 25 5 Average Carried 20 | 6 8 17 23 24 24 24 24 9 4 Final Capacity 25 | 8 10 25 25 25 25 25 25 5 5 Final Carried 25 | 7 10 21 25 25 24 25 23 5 4 Class Distribution -------------------- 83% | Mutant 13% | Scavenger-Mutant 3% | Infiltrator-Mutant Dominant Class ---------------- Scavenger-Mutant | -10/Materials Mutant | -9/Materials Mutant | -9/Mines Mutant | -9/Exiles Mutant | -8/Mines Mutant | -8/Materials Mutant | -7/Factory Infiltrator-Mutant | -7/Waste Mutant | -7/Factory Resources | -11 -10 -9 -9 -9 -8 -8 -7 -7 -7 ----------- Run | Yrd Mat Mat Min Exi Min Mat Fac Was Fac Matter Collected 3949 | 238 453 1264 146 20 216 694 841 . 77 Remotely 363 | . . 189 . . . 174 . . . Salvage Created 5413 | 97 714 1324 173 . 239 1493 1373 . . Parts 312 | 4 44 84 11 . 16 85 68 . . Haulers Intercepted 16 | . 2 5 . . . 6 3 . . Recyclers Shooed 1 | . . 1 . . . . . . . Parts Field Recycled . | . . . . . . . . . . Retrieved Matter . | . . . . . . . . . . Parts Self-Destructed . | . . . . . . . . . . Prevented . | . . . . . . . . . . Kills | -11 -10 -9 -9 -9 -8 -8 -7 -7 -7 ------- Run | Yrd Mat Mat Min Exi Min Mat Fac Was Fac Combat Hostiles Destroyed 129 | . 17 34 6 . 14 32 26 . . Guns 18 | . 16 . . . . . 2 . . Cannons 65 | . 1 24 2 . 4 20 14 . . AOE 40 | . . 10 4 . 10 10 6 . . Classes Destroyed 15 | 2 3 5 1 . . 2 2 . . Worker 6 | . . 3 1 . . . 2 . . Builder 2 | . . . 1 . . . 1 . . Tunneler 2 | 1 . . . . . . 1 . . Hauler 16 | . 2 5 . . . 6 3 . . Recycler 11 | 1 . 4 1 . . 1 4 . . Operator 2 | . . 2 . . . . . . . Watcher 1 | . . 1 . . . . . . . Swarmer 41 | . 3 14 4 . 8 9 3 . . Grunt 53 | . 14 9 2 . 6 12 10 . . Duelist 1 | . . 1 . . . . . . . Protector 1 | . . . . . . . 1 . . Sentry 24 | . . 10 . . . 9 5 . . Hunter 3 | . . . . . . 1 2 . . Programmer 5 | . . . . . . . 5 . . Heavy 1 | . . . . . . 1 . . . Best Kill Streak 6 | 2 5 5 6 . 4 4 6 . . Combat Bots Only 5 | . 5 5 4 . 4 3 5 . . Max Kills in Single Turn 5 | 1 1 4 5 . 3 3 2 . . Gunslinging . | . . . . . . . . . . Exploded 4 | . . 3 4 . 3 3 2 . . Melee . | . . . . . . . . . . Uniques/NPCs Destroyed . | . . . . . . . . . . Combat | -11 -10 -9 -9 -9 -8 -8 -7 -7 -7 -------- Run | Yrd Mat Mat Min Exi Min Mat Fac Was Fac Hostile Shots Fired 842 | . 89 103 20 . 45 155 288 2 140 Missed 289 | . 19 22 6 . 17 56 102 . 67 Damage Taken 7176 | . 838 981 265 . 402 1558 2174 98 860 Core 1206 | . 201 150 36 . 39 77 190 41 472 Absorbed by Shields . | . . . . . . . . . . Regen/Repaired (Parts) 380 | . . 179 . . . 201 . . . Core Remaining (%) 62 | 100 19 . . . 43 86 . . . Volleys Fired 378 | 3 62 88 11 . 23 87 104 . . Largest 2 | 2 2 2 2 . 2 2 2 . . Hottest 136 | 40 125 78 78 . 107 136 136 . . Shots Fired 704 | 6 124 174 20 . 33 163 184 . . Gun 160 | 6 115 . . . . . 39 . . Cannon 509 | . 9 168 19 . 20 156 137 . . Launcher 35 | . . 6 1 . 13 7 8 . . Special . | . . . . . . . . . . Kinetic 402 | 6 101 168 19 . 14 18 76 . . Thermal 257 | . 13 . . . 6 138 100 . . Explosive 35 | . . 6 1 . 13 7 8 . . Electromagnetic 10 | . 10 . . . . . . . . Robot Hit Streak 38 | 2 7 15 7 . 11 18 38 . . Robot Miss Streak 6 | 2 3 5 1 . 2 6 3 . . Penetration Max . | . . . . . . . . . . Secondary Targets 4 | . 4 . . . . . . . . Max Gunslinging Chain 1 | . 1 . . . . . . . . Shots Hit Robots 464 | 2 81 98 13 . 22 103 145 . . Core Hits 237 | 2 29 56 9 . 25 52 63 . 1 Critical Kills 7 | 1 . . . . . 3 3 . . Critical Parts Destroyed . | . . . . . . . . . . Critical Strikes 15 | 1 . 4 2 . . 4 4 . . Meltdown 6 | . . . . . . 3 3 . . Destroy 1 | 1 . . . . . . . . . Blast 8 | . . 4 2 . . 1 1 . . Melee Attacks 27 | . . 2 1 . . . 24 . . Impact 1 | . . 1 . . . . . . . Slashing 24 | . . 1 1 . . . 22 . . Piercing . | . . . . . . . . . . Sneak Attacks 3 | . . . . . . . 3 . . Combat Hostiles . | . . . . . . . . . . Follow-up Attacks . | . . . . . . . . . . Damage Inflicted 12191 | 20 1053 2511 574 . 972 2924 4119 . 18 Guns 1463 | 20 968 . . . . . 475 . . Cannons 7235 | . 74 1891 270 . 287 2288 2425 . . Explosions 3331 | . . 588 304 . 672 631 1136 . . Melee 58 | . . . . . . . 58 . . Ramming 104 | . 11 32 . . 13 5 25 . 18 Kinetic 4892 | 20 798 1891 270 . 206 382 1325 . . Thermal 3822 | . 135 . 125 . 81 1906 1575 . . Explosive 3206 | . . 588 179 . 672 631 1136 . . Electromagnetic 109 | . 109 . . . . . . . . Impact . | . . . . . . . . . . Slashing 58 | . . . . . . . 58 . . Piercing . | . . . . . . . . . . Highest Corruption 27 | . . . . . . . 7 23 27 Average Corruption 11 | . . . . . . . 5 16 23 Corruption Purged . | . . . . . . . . . . Corruption Blocked . | . . . . . . . . . . Effects 86 | . . . . . . . 40 11 35 Message Errors 28 | . . . . . . . 13 2 13 Matter Fused 18 | . . . . . . . 11 2 5 Heat Flow Errors 10 | . . . . . . . 4 . 6 Energy Discharges 8 | . . . . . . . 5 1 2 Parts Rejected 2 | . . . . . . . . . 2 Data Loss (minor) 7 | . . . . . . . 3 3 1 Data Loss (major) 5 | . . . . . . . 2 . 3 Misfires 2 | . . . . . . . 2 . . Misdirections 6 | . . . . . . . . 3 3 Overload Shots . | . . . . . . . . . . Overflow Damage 309 | . . 63 63 . 6 81 96 . . Projectiles 85 | . . 17 . . . 14 54 . . Explosions 224 | . . 46 63 . 6 67 42 . . Melee . | . . . . . . . . . . Knockbacks 29 | . 1 13 . . 2 4 9 . . Impact . | . . . . . . . . . . Kinetic 26 | . 1 10 . . 2 4 9 . . Secondary 3 | . . 3 . . . . . . . Self-Inflicted Damage 272 | . . . 118 . 24 71 52 . 7 Shots 10 | . . . 3 . 3 3 1 . . Rammed 15 | . . 3 . . 1 1 2 . 8 Targets Rammed 17 | . 2 3 . . 1 1 2 . 8 Kicked 2 | . 2 . . . . . . . . Crushed . | . . . . . . . . . . Highest Temperature 285 | . 90 176 261 . 255 277 285 . 235 Average Temperature 56 | . 32 32 114 . 76 62 57 . 110 Received Heat Transfer 2709 | . 456 360 72 . 171 738 606 . 306 Effects 1 | . . . 1 . . . . . . Energy Bleed 1 | . . . 1 . . . . . . Siege Activations . | . . . . . . . . . . Robots Corrupted . | . . . . . . . . . . Combat Hostiles . | . . . . . . . . . . Parts Fried . | . . . . . . . . . . Impact Corruptions . | . . . . . . . . . . Robots Melted 7 | . . . . . . 3 4 . . Combat Hostiles 6 | . . . . . . 2 4 . . Parts Melted 30 | . 2 . . . . 13 15 . . Heat Transferred 6699 | . 333 . 150 . 148 3367 2701 . . Parts Sabotaged . | . . . . . . . . . . Parts Stolen . | . . . . . . . . . . Parts Stripped . | . . . . . . . . . . Power Chain Reactions . | . . . . . . . . . . Alert | -11 -10 -9 -9 -9 -8 -8 -7 -7 -7 ------- Run | Yrd Mat Mat Min Exi Min Mat Fac Was Fac Peak Influence 807 | 10 387 571 200 . 231 807 794 282 275 Initial 366 | . 6 97 160 . . . 366 277 176 Average 221 | 5 213 260 60 . 68 270 295 268 186 Maximum Alert Level 3 | . 1 2 1 . 1 3 3 1 1 Low Security (%) 49 | 100 30 23 96 . 99 59 29 . 49 Level 1 37 | . 69 64 3 . . 11 53 100 50 Level 2 8 | . . 12 . . . 16 12 . . Level 3 3 | . . . . . . 12 4 . . Level 4 . | . . . . . . . . . . Level 5 . | . . . . . . . . . . High Security . | . . . . . . . . . . Max Security . | . . . . . . . . . . Squads Dispatched 31 | . 5 4 . . . 3 12 . 7 Investigation 12 | . 3 2 . . . 1 2 . 4 Extermination 6 | . . . . . . . 5 . 1 Reinforcement 12 | . 2 2 . . . 2 4 . 2 Assault 1 | . . . . . . . 1 . . Garrison . | . . . . . . . . . . Intercept . | . . . . . . . . . . Searches Triggered . | . . . . . . . . . . Construction Impeded . | . . . . . . . . . . Haulers Reinforced 2 | . . . . . . . 2 . . Active Scanning Responses . | . . . . . . . . . . Cargo Convoy Interrupts . | . . . . . . . . . . Stealth | -11 -10 -9 -9 -9 -8 -8 -7 -7 -7 --------- Run | Yrd Mat Mat Min Exi Min Mat Fac Was Fac Distress Signals 15 | . 3 7 . . . 3 2 . . Communications Jammed . | . . . . . . . . . . Distress Signals . | . . . . . . . . . . Times Spotted 247 | . 33 61 7 . 15 56 42 7 26 Peak Tracking Total 12 | . 6 6 4 . 4 7 6 6 12 Tactical Retreats 23 | . 2 2 . . 1 3 3 3 9 Traps | -11 -10 -9 -9 -9 -8 -8 -7 -7 -7 ------- Run | Yrd Mat Mat Min Exi Min Mat Fac Was Fac Traps Triggered 14 | . 2 2 . . . . 5 . 5 Indirectly . | . . . . . . . . . . Trap Hack Attempts 24 | . . . . . . . 24 . . Triggered . | . . . . . . . . . . Disarmed 2 | . . . . . . . 2 . . Reprogrammed 5 | . . . . . . 1 4 . . Reused 2 | . . . . . . 2 . . . Traps Extracted 4 | . . . . . . . 4 . . Installed 4 | . . . . . . 4 . . . Triggered 2 | . . . . . . 2 . . . Most Traps Carried 4 | . . . 4 4 4 4 4 4 4 Machines | -11 -10 -9 -9 -9 -8 -8 -7 -7 -7 ---------- Run | Yrd Mat Mat Min Exi Min Mat Fac Was Fac Machines Disabled 18 | . . 3 2 . 1 7 5 . . Max in Single Turn 2 | . . 1 2 . 1 2 1 . . Garrison Access 2 | . . . . . . 1 . . 1 Machines Repaired . | . . . . . . . . . . Machines Dismantled . | . . . . . . . . . . Machines Sabotaged . | . . . . . . . . . . Overloaded Fab Kills . | . . . . . . . . . . Hacking | -11 -10 -9 -9 -9 -8 -8 -7 -7 -7 --------- Run | Yrd Mat Mat Min Exi Min Mat Fac Was Fac Machines Accessed 57 | . 5 14 . 1 . 15 13 . 9 Terminals 37 | . 5 9 . . . 11 8 . 4 Fabricators 1 | . . . . . . . 1 . . Repair Stations 4 | . . 2 . . . 1 . . 1 Recycling Units 7 | . . 2 . . . . 2 . 3 Scanalyzers 4 | . . 1 . . . 2 1 . . Garrison Access 3 | . . . . . . 1 1 . 1 Total Hacks 158 | . 16 36 . 4 . 49 24 . 29 Successful 81 | . 9 17 . 4 . 31 8 . 12 Failed 77 | . 7 19 . . . 18 16 . 17 Catastrophic 21 | . 1 6 . . . 4 4 . 6 Database Lockouts . | . . . . . . . . . . Manual 60 | . 9 20 . . . 13 9 . 9 Terminals 105 | . 16 22 . . . 36 17 . 14 Fabricators 1 | . . . . . . . 1 . . Repair Stations 15 | . . 7 . . . 5 . . 3 Recycling Units 18 | . . 4 . . . . 3 . 11 Scanalyzers 12 | . . 3 . . . 7 2 . . Garrison Access 3 | . . . . . . 1 1 . 1 Terminal Hacks 44 | . 8 8 . 4 . 15 6 . 3 Record 4 | . . . . 4 . . . . . Part Schematic 1 | . . 1 . . . . . . . Robot Schematic 3 | . 2 1 . . . . . . . Robot Analysis 2 | . . 1 . . . 1 . . . Prototype ID Bank 7 | . 2 1 . . . 4 . . . Open DSF 1 | . . . . . . . 1 . . Branch Access Points 2 | . . . . . . . 1 . 1 Alert Level 3 | . 2 . . . . 1 . . . Unreport Threat 6 | . . 2 . . . 2 1 . 1 Locate Traps 8 | . 1 1 . . . 3 2 . 1 Reprogram Traps 1 | . . . . . . 1 . . . Recall Reinforcements 1 | . . . . . . 1 . . . Hauler Manifests 5 | . 1 1 . . . 2 1 . . Fabricator Hacks . | . . . . . . . . . . Repair Station Hacks 10 | . . 4 . . . 5 . . 1 Scan Component 5 | . . 2 . . . 3 . . . Repair 4 | . . 2 . . . 2 . . . Refit 1 | . . . . . . . . . 1 Recycling Unit Hacks 4 | . . . . . . . . . 4 Process 2 | . . . . . . . . . 2 Retrieve Matter 1 | . . . . . . . . . 1 Retrieve Components 1 | . . . . . . . . . 1 Scanalyzer 9 | . . 2 . . . 7 . . . Insert Component 4 | . . 1 . . . 3 . . . Analyze 5 | . . 1 . . . 4 . . . Garrison Access Hacks 2 | . . . . . . 1 . . 1 Seal Access 2 | . . . . . . 1 . . 1 Unauthorized Hacks 12 | . 1 3 . . . 3 2 . 3 Terminals 8 | . 1 1 . . . 3 . . 3 Track 1 | . . . . . . . . . 1 Assimilate 3 | . . 1 . . . 2 . . . Botnet 2 | . 1 . . . . 1 . . . Disrupt 2 | . . . . . . . . . 2 Fabricators 1 | . . . . . . . 1 . . Liberate 1 | . . . . . . . 1 . . Repair Stations . | . . . . . . . . . . Recycling Units 3 | . . 2 . . . . 1 . . Reject 3 | . . 2 . . . . 1 . . Scanalyzers . | . . . . . . . . . . Garrison Access . | . . . . . . . . . . Data Cores Recovered 1 | . . 1 . . . . . . . Used . | . . . . . . . . . . Hacking Detections 47 | . 5 12 . . . 13 10 . 7 Full Trace Events 8 | . 1 1 . . . 2 1 . 3 Feedback Events . | . . . . . . . . . . Feedback Blocked . | . . . . . . . . . . Robot Schematics Acquired 3 | . 2 1 . . . . . . . Robots Built . | . . . . . . . . . . Authchips . | . . . . . . . . . . Time . | . . . . . . . . . . Total Robot Build Rating . | . . . . . . . . . . Part Schematics Acquired 5 | . . 2 . . . 3 . . . Parts Built . | . . . . . . . . . . Authchips . | . . . . . . . . . . Time . | . . . . . . . . . . Total Part Build Rating . | . . . . . . . . . . Parts Repaired 4 | . . 2 . . . 2 . . . Time 128 | . . 58 . . . 70 . . . Parts Recycled . | . . . . . . . . . . Recycled Matter 28 | . . . . . . . . . 28 Retrieved Matter . | . . . . . . . . . . Retrieved Components . | . . . . . . . . . . Parts Scanalyzed 4 | . . 1 . . . 3 . . . Part Schematics Acquired 4 | . . 1 . . . 3 . . . Parts Damaged . | . . . . . . . . . . Bothacking | -11 -10 -9 -9 -9 -8 -8 -7 -7 -7 ------------ Run | Yrd Mat Mat Min Exi Min Mat Fac Was Fac Used RIF Installer . | . . . . . . . . . . Robots Hacked 2 | . . . . . . . 2 . . Non-combat 2 | . . . . . . . 2 . . Combat . | . . . . . . . . . . Robot Hacks Applied 2 | . . . . . . . 2 . . no_distress 1 | . . . . . . . 1 . . find_chute 1 | . . . . . . . 1 . . Relay Couplers Released . | . . . . . . . . . . Fabnet Peak Effective % . | . . . . . . . . . . Robots Rewired . | . . . . . . . . . . Allies Hacked 1 | . . . . . . . 1 . . Hacks Repelled . | . . . . . . . . . . Allies | -11 -10 -9 -9 -9 -8 -8 -7 -7 -7 -------- Run | Yrd Mat Mat Min Exi Min Mat Fac Was Fac Total Allies 3 | . . . . . . . 3 . . Largest Group 3 | . . . . . . . 3 . . Highest-Rated Group 104 | . . . . . . . 104 . . Highest-Rated Ally 37 | . . . . . . . 37 . . Total Orders . | . . . . . . . . . . Ally Attacks 23 | . . . . . . . 23 . . Total Damage 852 | . . . . . . . 852 . . Kills 10 | . . . . . . . 10 . . Allies Corrupted . | . . . . . . . . . . Allies Melted . | . . . . . . . . . . Intel | -11 -10 -9 -9 -9 -8 -8 -7 -7 -7 ------- Run | Yrd Mat Mat Min Exi Min Mat Fac Was Fac Robot Analysis Total 2 | . . 1 . . . 1 . . . Derelict Logs Recovered 1 | . . . 1 . . . . . . Drone Launches . | . . . . . . . . . . Drone Recoveries . | . . . . . . . . . . Exploration | -11 -10 -9 -9 -9 -8 -8 -7 -7 -7 ------------- Run | Yrd Mat Mat Min Exi Min Mat Fac Was Fac Turns Passed 15138 | 30 1035 2973 1492 833 1510 2923 3404 179 759 Spaces Moved 7181 | 15 552 1312 589 346 598 1008 1594 174 993 Core 663 | . . . . . . . . 2 661 Treads 4476 | . . 1174 589 346 598 1008 761 . . Legs 705 | 15 552 138 . . . . . . . Wheels 833 | . . . . . . . 833 . . Hover 504 | . . . . . . . . 172 332 Flight . | . . . . . . . . . . Fastest Speed 48 | 120 120 120 240 240 240 230 115 48 50 Average Speed 178 | 120 139 177 240 240 240 237 174 76 70 Slowest Speed 1600 | 120 190 240 240 240 240 240 238 1600 250 Overloaded Moves . | . . . . . . . . . . Propulsion Burnouts . | . . . . . . . . . . Robots Hopped . | . . . . . . . . . . Cave-ins Triggered . | . . . . . . . . . . Exploration Rate (%) 75 | 3 96 97 99 76 100 98 55 98 36 Regions Visited 9 Branch Regions 3 Pre-discovered Areas 2 | . . . 1 1 . . . . . Known Exits Taken . | . . . . . . . . . . Unknown Exits Taken 7 | 1 1 1 1 1 1 1 . . . Scrap Searched 6 | . . . 4 . 2 . . . . Spaces Dug 31 | . . 2 1 . . 8 20 . . Terrain Destroyed 322 | . . 35 21 . 96 93 77 . . Melee 23 | . . 2 1 . . . 20 . . Projectile 10 | . . 4 . . 2 3 1 . . AOE 289 | . . 29 20 . 94 90 56 . . Terrain Rammed . | . . . . . . . . . . Walls Destroyed . | . . . . . . . . . . Machines Disabled . | . . . . . . . . . . Actions | -11 -10 -9 -9 -9 -8 -8 -7 -7 -7 --------- Run | Yrd Mat Mat Min Exi Min Mat Fac Was Fac Total 8794 | 20 708 1778 645 349 639 1382 1997 223 1053 Wait 721 | . 32 286 35 . 11 169 166 18 4 Move 7173 | 14 551 1311 588 345 597 1007 1594 173 993 Hop . | . . . . . . . . . . Pick Up 96 | 1 14 23 4 1 2 32 15 1 3 Fast Attach 40 | 1 8 4 . . . 10 5 9 3 Attach 22 | . 2 1 . . 2 6 5 4 2 Detach 11 | . 2 . . . . 2 . 7 . Swap 115 | 1 12 33 5 2 2 26 33 1 . Drop 136 | . 23 27 1 1 1 38 25 10 10 Fire 378 | 3 62 88 11 . 23 87 104 . . Melee 27 | . . 2 1 . . . 24 . . Ram 10 | . . . . . . . 2 . 8 Kick 2 | . 2 . . . . . . . . Crush 5 | . . 3 . . 1 1 . . . Escape Stasis 30 | . . . . . . . . . 30 Rewire . | . . . . . . . . . . Trap 28 | . . . . . . 4 24 . . Miscellaneous . | . . . . . . . . . . Route ------- -11/Scrapyard -10/Materials (discovered 4 exits: *Mat x3 / [*Min]) -9/Materials (discovered 4 exits: *Mat x3 / [*Min]) -9/Mines (discovered 3 exits: *Mat x2 / *Exi) -9/Exiles -8/Mines (discovered 2 exits: *Mat x2) -8/Materials (discovered 3 exits: *Fac x3) -7/Factory (discovered 4 exits: [*Fac] / Sto / Low x2) -7/Waste -7/Factory (discovered 5 exits: [*Fac] / *Sto x2 / Low x2) History --------- Turn | Location | Event 3 | -11/Scrapyard | Discovered new exit (range 3) 31 | -11/Scrapyard | Entered Materials 222 | -10/Materials | Discovered new exit (range 16) 301 | -10/Materials | Build established: Mutant 405 | -10/Materials | Core integrity fell below 50% 583 | -10/Materials | Discovered new exit (range 11) 682 | -10/Materials | Build established: Scavenger-Mutant 749 | -10/Materials | Discovered new exit (range 10) 785 | -10/Materials | Core integrity fell below 20% 1010 | -10/Materials | Discovered new exit (range 16) 1066 | -10/Materials | Entered another Materials area 1066 | -9/Materials | Evolved 2 slots: Propulsion x1, Utility x1 1579 | -9/Materials | Repaired Lgt. Armor Plating 1600 | -9/Materials | Build established: Mutant 1714 | -9/Materials | Discovered new exit (range 10) 1936 | -9/Materials | Discovered new exit (range 11) 2420 | -9/Materials | Discovered new exit (range 13) 2570 | -9/Materials | Discovered new exit (range 14) 3758 | -9/Materials | Repaired Hrd. Light Armor Plating 4039 | -9/Materials | Entered Mines 4150 | -9/Mines | Discovered new exit (range 8) 4210 | -9/Mines | Deemed a non-threat by the Exiles lab entrance 4210 | -9/Mines | Discovered new exit (range 5) 4557 | -9/Mines | Found a hidden stash of uninstalled traps 4904 | -9/Mines | Learned location of Storage (-7) 4987 | -9/Mines | Learned Materials trap positions 5071 | -9/Mines | Discovered new exit (range 13) 5531 | -9/Mines | Entered Exiles 5591 | -9/Exiles | Met 8R-AWN 5630 | -9/Exiles | Met EX-HEX 5707 | -9/Exiles | Met EX-BIN 5905 | -9/Exiles | Met EX-DEC 5921 | -9/Exiles | Learned location of Zion (-6) 6035 | -9/Exiles | Visited The Gauntlet 6345 | -9/Exiles | Discovered new exit (range 10) 6364 | -9/Exiles | Entered Mines 6737 | -8/Mines | Core integrity fell below 50% 7259 | -8/Mines | Discovered new exit (range 9) 7421 | -8/Mines | Discovered new exit (range 7) 7874 | -8/Mines | Entered Materials 7874 | -8/Materials | Evolved 2 slots: Propulsion x1, Utility x1 7875 | -8/Materials | Loaded intel: 23 trap records 8582 | -8/Materials | Repaired Imp. Utility Shielding 8615 | -8/Materials | Repaired Hrd. Light Armor Plating 9314 | -8/Materials | Discovered new exit (range 16) 9963 | -8/Materials | Discovered new exit (range 13) 10697 | -8/Materials | Discovered new exit (range 16) 10797 | -8/Materials | Entered Factory 10797 | -7/Factory | Evolved 2 slots: Utility x2 10985 | -7/Factory | Identified exit to DSF 11137 | -7/Factory | Discovered new exit (range 2) 11495 | -7/Factory | Build established: Scavenger-Mutant 12826 | -7/Factory | Build established: Mutant 13354 | -7/Factory | Identified exit to Storage 13354 | -7/Factory | Identified exit to Lower Caves 13997 | -7/Factory | First assault squad dispatched 14201 | -7/Factory | Sucked down chute 14201 | -7/Factory | Entered Waste 14216 | -7/Waste | EMP discharged 14216 | -7/Waste | System corruption reached 10% 14233 | -7/Waste | Spotted C-40 Crusher 14252 | -7/Waste | Crushed by Compactor (1 part destroyed, 2 dropped) 14281 | -7/Waste | Spotted C-40 Crusher 14282 | -7/Waste | Spotted C-40 Crusher 14308 | -7/Waste | Spotted C-40 Crusher 14316 | -7/Waste | EMP discharged 14326 | -7/Waste | Crushed by Compactor (1 part destroyed, 1 dropped) 14332 | -7/Waste | Spotted C-40 Crusher 14344 | -7/Waste | Spotted C-40 Crusher 14357 | -7/Waste | Lost 3 parts (2n1u) 14365 | -7/Waste | Discovered new exit (range 13) 14379 | -7/Waste | Identified exit to Factory 14380 | -7/Waste | Entered Factory 14543 | -7/Factory | Discovered exit to Storage (range 7) 14667 | -7/Factory | Build established: Infiltrator-Mutant 14796 | -7/Factory | Core integrity fell below 50% 14965 | -7/Factory | Discovered new exit (range 12) 15032 | -7/Factory | Build established: Mutant 15115 | -7/Factory | Core integrity fell below 20% 15139 | -7/Factory | Destroyed by G-47 Trooper with Particle Gun Last Messages --------------- 15051_ Triggered Shock Trap. 15051_ The floor emits a surge of raw power. 15051_ System corrupted (+1). 15058_ LU6Y638QKITMP>Q8ZQJM 15059_ Connecting with Repair Station... >>Refit Scanning configuration... Attaching: Backup Power I x1 Backup Propulsion I x2 Backup Laser I x2 15059_ Dropped Backup Laser I. 15085_ Transmission Jammer destroyed. 15088_ System corrupted: Backup Propulsion I rejected. 15103_ System corrupted: Energy discharge (-36). 15107_ Acquired 77 matter. 15114_ Backup Power I destroyed. 15117_ Backup Propulsion I destroyed. 15131_ U LNXXWBLS4ZR=2R 15135_ Imp. Light Armor Plating destroyed. Map ----- +----------------------------------------------------+ | ??# #### ????????>????????? | | ??# #??# #####??###?????? ???????? | | ??# #??# #??????????????? / ???????? | | ??# #??# #??????????????# #??????? | | ??# #??? #??????????????# #??????? | | ??# #??? #??????????????+ +??????? | | ??# #??? #??????????????# #??????? | | ??# ####+###????????????#k #??????? | | ??# + #????????????# #??????? | | ??# # """" #????????????#o #??????? | | ### # """" #????????????# #??????? | | + """" #????????????# #??????? | | ### # """" #????????????# #??????? | | ??# # #????????????# #??????? | | ### ########????????????# #??????? | | # #?????????????????# #??????? | | # T ################### #??????? | | "" + ! # ######## | | # ## ###### # #/ # | | # ## #????# """ """ #k # "# | | ###+#### #????# """ """ + + ! T# | | ## #????# """ """ # # "# | | [ ## #????# # #/ # | | """ ## #????# #kgg# """ # | | "Y ##+###### # # """ # | | """ # ############@ # """ # | | !# !== #??????????# # # | | ####### != #??????????# g# """ # | | ??????# != #??????????# # """ # | | ##############?########## # """ # | | #?????# #r #! # | | """"" ] #?????# """ / # ######## | | #?????# "R[[ # ^ #! = # | | """"" #?????# """ = # # # | | ! ??????# # # """" # | | """"" ????????# """ /u + """" # | | ??????????# """ # # """" # | | ????????????# """ # # """" # | | +###???????????# # # """" # | | #############+######## # """" # | | # """" # | | ####### # # | | #?????# # / # | | ############## #?????# # ? | | #????????????# #?????# # ? | | #########??###+####### #######? | | ## #??# ## #??????? | | ## #??# ! ## #??????? | | / """" #??# # ??????? | | ## """" #??#""" # ! ??????? | +----------------------------------------------------+ Best States ------------- Heat Dissipation 61 Energy Generation 15 Energy Capacity 265 Matter Stores 300 Matter Capacity 300 Sight Range 20 Terrain Scan Density 10 ECM Strength 1 Jamming Range 12 Armor Coverage 375 Evasion (%) 55 Targeting Accuracy 8 Recoil Reduction 4 Offensive Hacking 10 Trap Extractor Capacity 4 Item Schematics ----------------- Hcp. Storage Unit | -9/Materials | Hacked ECM Suite | -9/Materials | Scanalyzed Imp. Utility Shielding | -8/Materials | Scanalyzed Plasma Cutter | -8/Materials | Scanalyzed Imp. Flight Unit | -8/Materials | Scanalyzed Robot Schematics ------------------ G-34 Mercenary | -10/Materials | Hacked S-10 Pest | -10/Materials | Hacked W-16 Scout | -9/Materials | Hacked Fabricated ------------ Nothing Alien Tech Used ----------------- None Achievements -------------- None Challenges ------------ None Game ------ Seed NetworkMicrowarpPick Manual? 0 Play Time 02:06:42 Cumulative 444.9 hours Start 2024.06.07 @ 21:55:24 End 2024.06.08 @ 13:36:52 Sessions 2 Manual Loads 0 Difficulty Rogue Special Mode None Game No. 136 Rogue 97 Adventurer 0 Explorer 39 Win Type - Total 13 Types 11/1/1/0/0/0/0/0/0 Lore% 75 Gallery% 82 Achievement% 70 Wizard Run 0 Options --------- Layout 0 ASCII 1 Keyboard 1 Movement Arrows Keybinds 0 Fullscreen 2 Font 36/Smallcaps Map View 76x50 Zoom Use 0% Tactical HUD 1 Map Filters NONE Filters NONE Steam 1 RUN: 38a4d052-5114-4c2f-8ab9-87d75693b9e4